[Event "44th Chess Olympiad Open 2022"]
[Site "Chennai"]
[Date "2022.08.06"]
[Round "8.3"]
[White "Keymer, Vincent"]
[Black "Abdusattorov, Nodirbek"]
[Result "1/2-1/2"]
[WhiteElo "2686"]
[BlackElo "2688"]
[Annotator "TA"]
[PlyCount "85"]
[EventDate "2022.??.??"]
[TimeControl "60"]

{[%evp 11,85,23,23,15,9,12,16,11,31,24,7,15,50,18,62,24,18,8,0,0,0,0,20,16,19,
15,12,0,0,-14,0,-66,-29,-58,-18,-134,-135,-166,-160,-150,-157,-147,-131,-114,
-120,-161,-112,-94,-50,-43,-52,-52,-66,-57,0,0,0,0,0,0,0,0,0,0,0,0,0,0,0,0,0,0,
0,0,0,0]} 1. Nf3 {[%emt 0:00:04]} d5 {[%emt 0:00:08]} 2. g3 {[%emt 0:00:05]}
Nc6 {[%emt 0:00:18]} 3. d4 {[%emt 0:00:23]} Bf5 {[%emt 0:00:06]} 4. Bg2 {
[%emt 0:00:36]} Nb4 {[%emt 0:00:05]} 5. Na3 {[%emt 0:00:18]} e6 {[%emt 0:00:08]
} 6. O-O {[%emt 0:00:28]} Be7 {[%emt 0:00:04]} 7. c3 {[%emt 0:03:01] D02:1 d4
d5 2 Nf3 sidelines, including 2...Nf6 3 g3 and 2...Nf6 3 Bf4.} Nc6 {[%emt 0:00:
00]} 8. Qa4 {[%emt 0:00:19]} Nf6 {[%emt 0:00:10]} 9. Ne5 {[%emt 0:01:08]} O-O {
[%emt 0:00:07]} 10. Nxc6 {[%emt 0:00:09]} bxc6 {[%emt 0:00:03]} 11. Qxc6 {
[%emt 0:00:09] [#]} h5 $146 {[%emt 0:00:04][%cal Yh7h5,Yh5h4,Yh4h3]} ({
Predecessor:} 11... Rb8 12. Qa4 c5 13. dxc5 Bxc5 14. b4 Bb6 15. Bf4 Rc8 16.
Rac1 Ne4 17. c4 dxc4 18. Nxc4 {1-0 (50) Efimenko,Z (2602)-Bluebaum,M (2647)
Chess.com INT 2020}) 12. Nb1 {[%emt 0:22:56]} h4 {[%emt 0:02:49]} 13. Bf4 {
[%emt 0:02:12]} Rb8 {[%emt 0:00:42]} 14. b4 {[%emt 0:01:55]} ({But not} 14.
Bxc7 $2 Qc8 15. Nd2 h3 $19) 14... Bd6 {[%emt 0:00:16]} 15. Bxd6 {[%emt 0:15:28]
} cxd6 {[%emt 0:00:19]} 16. Qa4 {[%emt 0:00:22]} h3 {[%emt 0:13:44]} 17. Bh1 {
[%emt 0:00:17]} Qb6 {[%emt 0:12:54]} 18. Nd2 {[%emt 0:03:55]} Rfc8 {[%emt 0:00:
00]} 19. Rfc1 {[%emt 0:07:04]} e5 {[%emt 0:04:21][%cal Ye6e5,Ye5e4]} 20. e3 {
[%emt 0:04:58]} e4 {[%emt 0:00:15]} 21. f3 {[%emt 0:05:53]} (21. Qc2 $11) 21...
a5 {[%emt 0:01:55]} 22. a3 {[%emt 0:05:46]} Qa6 {[%emt 0:00:37]} 23. c4 {
[%emt 0:05:16]} (23. Qc2 $1 $11 {remains equal.}) 23... exf3 $17 {[%emt 0:00:
00][%cal Rd5c4]} 24. b5 {[%emt 0:00:51]} Qa7 {[%emt 0:00:31][%cal Yf3f2]} 25.
Bxf3 {[%emt 0:01:01] [#]} Qe7 $1 {[%emt 0:00:05]} 26. Kf2 {[%emt 0:06:20]} Re8
{[%emt 0:11:23]} 27. Re1 {[%emt 0:00:33]} dxc4 {[%emt 0:03:28]} 28. e4 {
[%emt 0:00:13] [#]} Qa7 $1 {[%emt 0:04:34]} 29. Qxc4 {[%emt 0:03:03]} d5 {
[%emt 0:00:02]} 30. Qc5 {[%emt 0:02:15]} ({Avoid the trap} 30. exd5 $2 Rbc8 31.
Rxe8+ Nxe8 $19) 30... Qxc5 {[%emt 0:00:19]} 31. dxc5 {[%emt 0:00:03]} dxe4 {
[%emt 0:00:06]} 32. g4 $1 {[%emt 0:00:53]} Red8 {[%emt 0:11:55]} (32... Bxg4
$15 33. Bxg4 Nxg4+ 34. Kg3 f5) 33. Nxe4 $11 {[%emt 0:02:33] The position is
equal.} Bxe4 {[%emt 0:00:02]} 34. Bxe4 {[%emt 0:00:02]} Rxb5 {[%emt 0:00:10]}
35. Rac1 {[%emt 0:04:24]} Rb2+ {[%emt 0:03:05]} 36. Kg3 {[%emt 0:00:30]} g5 {
[%emt 0:00:41]} 37. Rc3 {[%emt 0:01:43]} Rd1 {[%emt 0:02:55]} 38. Rce3 {
[%emt 0:00:19]} ({Wrong is} 38. Bh7+ $2 Kxh7 39. Rxd1 Ne4+ 40. Kxh3 Nxc3 $19)
38... Nxe4+ {[%emt 0:06:37]} 39. Rxe4 {[%emt 0:00:01]} Rxe1 {[%emt 0:07:55]}
40. Rxe1 {[%emt 0:00:06] aiming for Rc1.} Rb3+ {[%emt 0:00:03]} 41. Kf2 {
[%emt 0:30:06] Re3 is the strong threat.} Rc3 {[%emt 0:30:33]} 42. Re3 {
[%emt 0:00:00]} Rxc5 {[%emt 0:00:00]} 43. Kg3 {[%emt 0:00:00] White happily
takes the draw. Weighted Error Value: White=0.15 (very precise) /Black=0.10 
(very precise)} 1/2-1/2

[Event "44th Chess Olympiad Open 2022"]
[Site "Chennai"]
[Date "2022.08.06"]
[Round "8.3"]
[White "Svane, Rasmus"]
[Black "Sindarov, Javokhir"]
[Result "1/2-1/2"]
[WhiteElo "2649"]
[BlackElo "2629"]
[Annotator "TA"]
[PlyCount "81"]
[EventDate "2022.??.??"]
[TimeControl "60"]

{[%evp 9,81,17,24,29,23,19,20,26,9,22,20,14,26,12,15,22,25,11,10,13,25,14,18,
21,27,25,23,23,15,38,20,5,7,11,111,95,96,50,42,41,50,38,31,56,44,0,67,66,72,87,
91,48,42,47,52,50,50,0,0,0,0,0,0,0,0,0,3,0,0,0,0,0,0,0]} 1. d4 {[%emt 0:00:04]}
Nf6 {[%emt 0:00:08]} 2. Nf3 {[%emt 0:00:13]} g6 {[%emt 0:00:10]} 3. Nbd2 {
[%emt 0:00:07]} d5 {[%emt 0:02:35]} 4. b3 {[%emt 0:00:15]} a5 {[%emt 0:04:59]}
5. e3 {[%emt 0:04:27]} Bg7 {[%emt 0:02:19]} 6. Bb2 {[%emt 0:07:16] [#] D02:1
d4 d5 2 Nf3 sidelines, including 2...Nf6 3 g3 and 2...Nf6 3 Bf4.} a4 $146 {
[%emt 0:03:18]} ({Predecessor:} 6... O-O 7. Be2 a4 8. bxa4 Rxa4 9. c4 Ra7 10.
O-O c6 11. a4 Bf5 12. Ba3 Ne4 13. Nxe4 Bxe4 {1-0 (41) Manolache,M (2469)
-Villar Perez,S (2188) Pontevedra 2022}) 7. c4 {[%emt 0:04:12]} O-O {[%emt 0:
00:00]} 8. Bd3 {[%emt 0:05:13]} c5 {[%emt 0:13:18]} 9. dxc5 {[%emt 0:15:33]}
Na6 {[%emt 0:04:29]} 10. cxd5 {[%emt 0:15:13] With the idea Bxa6.} Nxc5 {
[%emt 0:02:22]} 11. Bc4 {[%emt 0:00:10]} Nxd5 {[%emt 0:18:05]} 12. Bxg7 {
[%emt 0:00:05]} Kxg7 {[%emt 0:00:06]} 13. O-O {[%emt 0:04:14]} Nb6 {[%emt 0:00:
00]} 14. Be2 {[%emt 0:05:24]} axb3 {[%emt 0:01:54]} 15. axb3 {[%emt 0:01:03] 
[#] Black must now prevent Rxa8.} Bg4 {[%emt 0:00:54]} 16. Rxa8 {[%emt 0:04:20]
} Qxa8 {[%emt 0:00:46]} 17. Qc2 {[%emt 0:00:27]} Rc8 {[%emt 0:03:29]} 18. Qc3+
{[%emt 0:01:29]} Kg8 {[%emt 0:00:07]} 19. Qb4 {[%emt 0:06:26][%csl Yb6,Yg4]}
Bxf3 {[%emt 0:00:40]} 20. Nxf3 {[%emt 0:02:39]} Nd5 {[%emt 0:07:43]} 21. Qd4 {
[%emt 0:00:26]} b5 {[%emt 0:04:09]} (21... e6 $11) 22. Ra1 {[%emt 0:08:32]} (
22. Bxb5 $6 Nxb3 23. Qb2 Nc5 $11) 22... Qc6 {[%emt 0:02:35]} 23. Rc1 {[%emt 0:
00:00]} (23. Ne5 $16 Qd6 24. Ng4 (24. Bxb5 $2 Nxb3 25. Qg4 f5 $19)) 23... b4 $1
$14 {[%emt 0:00:07]} 24. Ne5 {[%emt 0:01:12]} Qd6 {[%emt 0:05:09] [#] aiming
for ...Nc3.} 25. Ng4 {[%emt 0:02:02] White threatens Nh6+ and mate.} f6 {
[%emt 0:03:23] ...Kg7 is the strong threat.} 26. Bc4 {[%emt 0:00:38]} Ne6 {
[%emt 0:02:57]} 27. Qd3 {[%emt 0:00:20] Hoping for e4.} (27. Qd2 $5 {[%cal
Re3e4]} Kg7 28. Rd1 $16 (28. e4 Nb6 $11)) 27... Kg7 {[%emt 0:01:15]} (27... Qc6
$1 $11) 28. Rd1 {[%emt 0:01:29]} Nec7 {[%emt 0:00:04][%cal Yh7h5]} 29. e4 {
[%emt 0:01:54]} ({Don't play} 29. Bxd5 Qxd5 30. Qxd5 Nxd5 $15) 29... h5 {
[%emt 0:00:46]} (29... Nc3 $2 30. Qxd6 exd6 31. Rxd6 Nxe4 32. Rc6 $18) 30. Ne3
{[%emt 0:01:46]} Nxe3 {[%emt 0:00:26]} 31. Qxd6 {[%emt 0:00:04]} exd6 {[%emt 0:
00:00]} 32. fxe3 {[%emt 0:00:10] Endgame KRB-KRN} Rd8 {[%emt 0:00:00]} 33. Rd4
{[%emt 0:01:51]} (33. Kf2 $14) 33... Kf8 $11 {[%emt 0:00:04] The position is
equal.} 34. Be2 {[%emt 0:00:41]} Ne6 {[%emt 0:00:04]} 35. Rxb4 {[%emt 0:00:06]}
Nc5 {[%emt 0:00:03]} 36. Rb6 {[%emt 0:01:41]} Nxe4 {[%emt 0:00:00]} 37. Bd3 {
[%emt 0:00:20]} f5 {[%emt 0:00:03]} 38. b4 {[%emt 0:00:52]} Ke7 {[%emt 0:01:43]
} 39. Bxe4 {[%emt 0:00:58]} fxe4 {[%emt 0:00:03]} 40. b5 {[%emt 0:00:13]} Rc8 {
[%emt 0:04:31]} 41. Rb7+ {[%emt 0:30:57] Weighted Error Value: White=0.06 
(flawless) /Black=0.09 (flawless)} 1/2-1/2

[Event "44th Chess Olympiad Open 2022"]
[Site "Chennai"]
[Date "2022.08.06"]
[Round "8.3"]
[White "Yakubboev, Nodirbek"]
[Black "Bluebaum, Matthias"]
[Result "1-0"]
[WhiteElo "2620"]
[BlackElo "2673"]
[Annotator "TA"]
[PlyCount "103"]
[EventDate "2022.??.??"]
[TimeControl "60"]

{[%evp 18,103,25,7,28,5,2,-5,10,15,23,0,18,18,25,18,31,0,0,0,0,0,8,0,11,14,98,
99,88,102,83,101,95,100,94,41,113,112,175,160,177,169,194,139,152,128,119,129,
145,93,94,100,101,107,187,152,83,63,98,101,147,140,159,151,159,164,191,140,167,
70,218,204,253,253,372,261,495,483,904,845,850,841,783,781,2145,2142,29994,
29994]} 1. e4 {[%emt 0:00:08]} e5 {[%emt 0:00:25]} 2. Nf3 {[%emt 0:01:03]} Nf6
{[%emt 0:00:12]} 3. Nxe5 {[%emt 0:02:33]} d6 {[%emt 0:00:12]} 4. Nf3 {[%emt 0:
00:00]} Nxe4 {[%emt 0:00:05]} 5. d4 {[%emt 0:00:03]} d5 {[%emt 0:00:36]} 6. Bd3
{[%emt 0:00:03]} Bd6 {[%emt 0:01:04]} 7. O-O {[%emt 0:00:14]} O-O {[%emt 0:00:
00]} 8. c4 {[%emt 0:01:40]} c6 {[%emt 0:00:05]} 9. Re1 {[%emt 0:00:03]} Bf5 {
[%emt 0:00:42]} 10. Qb3 {[%emt 0:00:14]} Qd7 {[%emt 0:02:46] C42: Petroff
Defence: 3 Nxe5 and unusual White 3rd moves.} 11. c5 {[%emt 0:00:40]} Bc7 {
[%emt 0:00:05]} 12. Nc3 {[%emt 0:00:01][%cal Rc3e4]} Re8 {[%emt 0:12:01] The
position is equal.} 13. Be3 {[%emt 0:00:02] [#]} h6 $146 {[%emt 0:04:31]} ({
Predecessor:} 13... Na6 14. Ne2 f6 15. a3 g5 16. Qc2 h5 17. Rad1 h4 18. Nd2 Qh7
19. Nxe4 Bxe4 20. Bxe4 Qxe4 21. Qxe4 Rxe4 {½-½ (33) Giri,A (2772)-Vidit,S 
(2727) Wijk aan Zee 2022}) 14. Rac1 {[%emt 0:00:06]} Qc8 {[%emt 0:07:13]} 15.
Nh4 {[%emt 0:00:29]} Bh7 {[%emt 0:05:16]} 16. f3 {[%emt 0:12:47]} Nxc3 {
[%emt 0:07:01]} 17. Qxc3 {[%emt 0:01:51]} Nd7 {[%emt 0:02:00]} 18. Bxh7+ {
[%emt 0:23:29]} Kxh7 {[%emt 0:00:01]} 19. Nf5 {[%emt 0:00:12]} Qd8 {[%emt 0:00:
00]} 20. Bf2 {[%emt 0:12:47] [#] And now Rxe8 would win.} Qf6 {[%emt 0:05:42]}
21. g4 {[%emt 0:02:49]} g6 {[%emt 0:06:02]} (21... Bf4 $11) 22. Bh4 $16 {
[%emt 0:01:06]} Qh8 {[%emt 0:00:05]} 23. Nd6 {[%emt 0:02:40]} Bxd6 {[%emt 0:00:
00]} 24. cxd6 {[%emt 0:00:02]} g5 {[%emt 0:00:24]} 25. Bg3 {[%emt 0:04:34]} Qf6
{[%emt 0:01:06]} 26. Kg2 {[%emt 0:03:20]} (26. a4 $16) 26... Nb6 {[%emt 0:00:
00]} (26... Nf8 $1 $14) 27. b3 {[%emt 0:03:47]} a5 {[%emt 0:05:47] Inhibits
Qb4.} (27... Nd7 $16 {keeps fighting.}) 28. Rc2 $18 {[%emt 0:09:27] Threatens
to win with Rce2.} Nd7 {[%emt 0:08:50] [#]} 29. Rce2 $1 {[%emt 0:06:17]} Re6 {
[%emt 0:01:01]} 30. Qd3+ {[%emt 0:01:55]} (30. Rxe6 $18 fxe6 31. Qe3) 30... Kg7
$16 {[%emt 0:01:25]} 31. Rxe6 {[%emt 0:02:03]} fxe6 {[%emt 0:00:01]} 32. Qe3 {
[%emt 0:00:42]} (32. Be5 $6 Nxe5 33. dxe5 Qf4 $11) 32... Re8 {[%emt 0:01:15]}
33. f4 {[%emt 0:03:04]} (33. Be5 $6 Nxe5 34. dxe5 (34. Qxe5 Rf8 $14) 34... Qf4
$14) (33. Rh1 $142) 33... gxf4 {[%emt 0:01:10]} 34. Bxf4 {[%emt 0:00:08]} Qg6 {
[%emt 0:01:25]} 35. h3 {[%emt 0:00:50][%cal Yh2h3,Yh3h4]} h5 {[%emt 0:00:00]} (
35... b6 $16) 36. Be5+ {[%emt 0:01:24]} Kh7 {[%emt 0:00:39]} 37. g5 {[%emt 0:
00:30]} Kg8 {[%emt 0:01:09]} 38. Bg3 {[%emt 0:02:59]} Kh7 {[%emt 0:00:00]} ({
Black should try} 38... b6) 39. h4 {[%emt 0:00:34]} Kg8 {[%emt 0:00:29]} 40.
Qe2 {[%emt 0:02:04]} Kg7 {[%emt 0:00:33]} 41. Kh2 {[%emt 0:04:05]} Kg8 {
[%emt 0:01:37]} 42. Qd2 {[%emt 0:02:13]} ({Better is} 42. a3 $18) 42... Ra8 {
[%emt 0:00:57]} 43. Re3 {[%emt 0:02:15]} (43. Qe3 $18 Re8 44. Qe2) 43... a4 {
[%emt 0:05:37] Black cannot hold the game after this.} (43... b6 $1 $14) 44. b4
{[%emt 0:00:07]} b5 {[%emt 0:05:36]} 45. Qe2 {[%emt 0:02:48]} Re8 {[%emt 0:00:
00]} (45... Kf7 $142 46. Rc3 Rc8) 46. Be5 $18 {[%emt 0:03:58][%cal Yg3e5,Ye5f6,
Yf6e7]} Kh7 $2 {[%emt 0:03:44]} (46... Qf5 {is a better defense.} 47. Bg3 (47.
Qxh5 Qf2+ 48. Kh1 Qf1+ 49. Kh2 Qf2+ 50. Kh1 Qf1+ 51. Kh2 Qf2+ $11) 47... Qg6)
47. Bf6 {[%emt 0:04:08] aiming for Be7.} Qf7 {[%emt 0:08:56]} (47... Kg8 $142
48. Be7 (48. Rxe6 Rxe6 49. Qxe6+ Kf8 $16) 48... Kf7 49. Rf3+ Kg8) 48. Be7 {
[%emt 0:03:00]} Qf4+ {[%emt 0:02:45]} 49. Kh3 {[%emt 0:02:07]} Kg8 {[%emt 0:03:
10]} 50. Rxe6 {[%emt 0:01:11] Threatening mate with Rg6+.} Nf8 {[%emt 0:00:21]
Prevents Rg6+.} 51. Rf6 {[%emt 0:01:15] Active counter play!} Qc1 {[%emt 0:00:
51]} 52. Qf3 {[%emt 0:00:21] Weighted Error Value: White=0.13 (very precise) /
Black=0.47} ({And not} 52. Qxh5 Qh1+ 53. Kg4 (53. Kg3 Qg1+ 54. Kh3 Qh1+ 55. Kg4
Qg1+ 56. Kh3 Qh1+ $11) 53... Qg1+ 54. Kh3 Qh1+ 55. Kg4 (55. Kg3 Qg1+ 56. Kh3
Qh1+ $11) 55... Qg1+ 56. Kh3 Qh1+ $11) 1-0

[Event "44th Chess Olympiad Open 2022"]
[Site "Chennai"]
[Date "2022.08.06"]
[Round "8.3"]
[White "Vakhidov, Jakhongir"]
[Black "Nisipeanu, Liviu-Dieter"]
[Result "1/2-1/2"]
[WhiteElo "2564"]
[BlackElo "2642"]
[Annotator "TA"]
[PlyCount "59"]
[EventDate "2022.??.??"]
[TimeControl "60"]

{[%evp 10,59,29,4,17,0,0,0,0,0,12,16,22,15,8,20,20,25,14,25,23,16,17,22,31,28,
21,17,16,10,39,43,53,-15,-14,-13,-14,-13,-14,-14,-14,-14,-14,-14,-14,-14,-12,
-29,-29,-31,-34,-36]} 1. c4 {[%emt 0:00:06]} Nf6 {[%emt 0:00:06]} 2. Nc3 {
[%emt 0:00:34]} e6 {[%emt 0:00:06]} 3. e4 {[%emt 0:00:13]} d5 {[%emt 0:00:06]}
4. cxd5 {[%emt 0:01:22]} exd5 {[%emt 0:00:06]} 5. e5 {[%emt 0:00:08]} Ne4 {
[%emt 0:00:05]} 6. Nf3 {[%emt 0:00:27]} Bf5 {[%emt 0:00:23] A18: English
Opening: Flohr-Mikenas System (1 c4 Nf6 2 Nc3 e6 3 e4).} 7. d3 {[%emt 0:00:10]}
Nxc3 {[%emt 0:00:06]} 8. bxc3 {[%emt 0:00:05][%cal Yb2c3,Yc3c4]} c5 {[%emt 0:
00:10] The position is equal.} 9. d4 {[%emt 0:00:07]} Qa5 {[%emt 0:00:00]} 10.
Bd2 {[%emt 0:00:13] Threatening c4.} Nc6 {[%emt 0:00:22]} 11. c4 {[%emt 0:00:
08]} Qd8 {[%emt 0:00:14]} 12. Qb3 {[%emt 0:00:09][%csl Yb7,Yd5]} Be4 {[%emt 0:
01:15]} 13. Qxb7 {[%emt 0:00:18]} Rc8 {[%emt 0:00:06]} 14. Ng5 {[%emt 0:00:24]
[%csl Gg5][%cal Rb7f7] [#]} Be7 {[%emt 0:00:20] Hoping for ... Rc7.} (14... Rc7
15. Qb5 a6 16. Qa4 $16 (16. Qxa6 Nxd4 17. Nxe4 dxe4 $11)) 15. Nxe4 {[%emt 0:00:
17]} dxe4 {[%emt 0:00:06]} 16. d5 {[%emt 0:00:14]} Nxe5 {[%emt 0:00:07]} 17.
Qb5+ {[%emt 0:00:11]} Qd7 {[%emt 0:01:19]} 18. Rb1 {[%emt 0:00:07]} Qxb5 {
[%emt 0:00:03]} 19. Rxb5 {[%emt 0:00:08]} Kd7 {[%emt 0:00:00] [#]} 20. Rb7+
$146 {[%emt 0:01:30]} ({Predecessor:} 20. Bc3 Kd6 21. Ra5 Rb8 22. Kd2 Bf6 23.
Be2 Nd7 24. Bxf6 Nxf6 25. Kc2 Rb7 26. Rb1 {1-0 (39) Le,Q (2709)-Pichot,A (2630)
Chess.com INT 2020}) 20... Kd6 {[%emt 0:00:15]} 21. Be2 {[%emt 0:28:44]} ({
Much weaker is} 21. Rxa7 Ra8 22. Rb7 Rhb8 23. Rxb8 Rxb8 $15) (21. Bf4 $14 f6
22. g4 (22. Rxa7 Ra8 $11)) 21... Rb8 $11 {[%emt 0:04:14]} 22. Rb3 {[%emt 0:00:
06]} Rxb3 {[%emt 0:09:19]} 23. axb3 {[%emt 0:00:07]} Rb8 {[%emt 0:00:06]} 24.
Bd1 {[%emt 0:00:05][%cal Ye2d1,Yd1c2,Yc2e4]} a5 {[%emt 0:08:54][%cal Ya5a4] ...
a4! is the strong threat.} 25. Bc2 {[%emt 0:00:00]} ({Don't blunder} 25. Bxa5
$2 Ra8 26. Bc3 Nd3+ 27. Kf1 Ra2 $19) 25... a4 {[%emt 0:22:00]} 26. bxa4 {
[%emt 0:00:11]} Nxc4 {[%emt 0:00:53]} 27. Bf4+ {[%emt 0:00:19]} Ne5 {[%emt 0:
00:04]} 28. Bxe4 {[%emt 0:00:24]} Rb4 {[%emt 0:00:00][%csl Ya4,Ye4]} 29. Bxe5+
{[%emt 0:00:57]} Kxe5 {[%emt 0:00:05]} 30. Bc2 {[%emt 0:00:22] Weighted Error
Value: White=0.07 (flawless) /Black=0.01 (flawless)} 1/2-1/2

[Event "44th Chess Olympiad Open 2022"]
[Site "Chennai"]
[Date "2022.08.06"]
[Round "8.4"]
[White "Guseinov, Gadir"]
[Black "Suleymenov, Alisher"]
[Result "0-1"]
[WhiteElo "2668"]
[BlackElo "2467"]
[Annotator "TA"]
[PlyCount "94"]
[EventDate "2022.??.??"]
[TimeControl "60"]

{[%evp 9,94,16,22,17,22,26,25,25,22,19,16,18,14,0,0,0,-4,-37,-40,-75,-86,-80,
-92,-97,-91,-96,-64,-69,-69,-93,-88,-122,-123,-160,-124,-308,-309,-300,-306,
-308,-302,-308,-247,-254,-241,-241,-244,-241,-241,-247,-247,-270,-268,-278,
-279,-274,-280,-294,-293,-344,-339,-324,-329,-387,-375,-455,-460,-446,-443,
-453,-459,-572,-556,-573,-574,-693,-684,-698,-539,-524,-512,-1004,-997,-931,
-922,-1535,-1383]} 1. e4 {[%emt 0:00:03]} c5 {[%emt 0:00:05]} 2. Nf3 {[%emt 0:
00:00]} Nc6 {[%emt 0:00:17]} 3. Nc3 {[%emt 0:00:47]} e5 {[%emt 0:00:05]} 4. Bc4
{[%emt 0:01:08]} Be7 {[%emt 0:00:12]} 5. d3 {[%emt 0:01:20]} Nf6 {[%emt 0:00:
00]} 6. Bg5 {[%emt 0:19:31] B30: Sicilian: 2...Nc6 3 Bb5, lines without ...g6.}
d6 {[%emt 0:00:00]} 7. Bxf6 {[%emt 0:03:57]} Bxf6 {[%emt 0:00:00]} 8. Nd5 {
[%emt 0:00:05] White has an edge.} O-O {[%emt 0:00:00]} 9. c3 {[%emt 0:03:09]}
(9. Nxf6+ Qxf6 10. c3 Bg4 $15) 9... Bg5 {[%emt 0:18:31]} 10. Nxg5 {[%emt 0:00:
00]} Qxg5 {[%emt 0:00:00] [#]} 11. Qd2 $146 {[%emt 0:00:18]} ({Predecessor:} 
11. O-O Rb8 12. a4 Be6 13. Qf3 Qd8 14. Ne3 Ne7 15. h3 Qd7 16. Qg3 Rbd8 17. Rab1
{½-½ (34) Mende,I (2431)-Ciciotti,A (2429) ICCF email 2020}) 11... Qxg2 {
[%emt 0:00:00]} 12. O-O-O {[%emt 0:00:51] Threatens to win with Rhg1.} Qh3 {
[%emt 0:00:00]} 13. Rdg1 {[%emt 0:07:13]} Qh4 $1 {[%emt 0:07:01]} 14. Rg5 {
[%emt 0:06:44] [#]} Kh8 $1 {[%emt 0:29:35]} 15. Rhg1 {[%emt 0:26:19] Strongly
threatening Nc7.} g6 {[%emt 0:00:00]} 16. Nc7 {[%emt 0:02:38]} Rb8 {[%emt 0:00:
00]} 17. Nb5 {[%emt 0:00:01]} f6 {[%emt 0:00:00][%cal Yf7f6,Yf6f5,Yf5e4]} 18.
R5g3 {[%emt 0:00:11]} Rd8 {[%emt 0:00:00]} 19. Nc7 {[%emt 0:00:05]} f5 {
[%emt 0:00:00]} (19... Qxh2 20. Kb1 Na5 21. Bd5 $14) 20. Qg5 {[%emt 0:06:29] 
[#]} Qf4+ {[%emt 0:05:08]} 21. Qxf4 {[%emt 0:00:22]} exf4 {[%emt 0:00:01]} 22.
Rf3 {[%emt 0:00:16] Now White is beyond hope.} (22. Rh3 $17 {is the only way
for White.} fxe4 23. Be6) 22... Rd7 $19 {[%emt 0:01:27]} 23. Ne6 {[%emt 0:00:
00]} Ne5 {[%emt 0:02:21]} 24. Rh3 {[%emt 0:00:26]} fxe4 {[%emt 0:00:58]} 25.
Nxf4 {[%emt 0:00:03]} d5 {[%emt 0:03:07]} 26. Rg5 {[%emt 0:02:59]} Nf7 {
[%emt 0:09:05]} ({Not} 26... dxc4 27. Rxe5 Rf7 28. Rh4 $17) (26... Nxc4 27.
dxc4 Rd6 28. Rh4 $11) ({Inferior is} 26... Rf7 27. Rh4 $19) 27. Rxd5 {[%emt 0:
00:00]} ({But not} 27. Nxg6+ Kg7 28. Rxh7+ Kxh7 $19) 27... Rxd5 {[%emt 0:00:19]
} 28. Bxd5 {[%emt 0:00:06]} Bxh3 {[%emt 0:00:07]} 29. Nxh3 {[%emt 0:00:08]
Endgame KRN-KBN} Ne5 {[%emt 0:01:27][%cal Yf7e5,Ye5g4,Yg4h2]} 30. Bxe4 {
[%emt 0:00:05]} Ng4 {[%emt 0:02:11]} 31. Kd2 {[%emt 0:01:34]} Nxh2 {[%emt 0:00:
41]} 32. Ng5 {[%emt 0:00:38]} Ng4 {[%emt 0:01:10]} 33. f4 b6 {[%emt 0:01:13]}
34. d4 {[%emt 0:02:17]} cxd4 {[%emt 0:02:25]} 35. cxd4 {[%emt 0:00:02]} Kg7 {
[%emt 0:02:37]} 36. Bc6 {[%emt 0:00:00]} h6 {[%emt 0:00:00][%cal Yh7h6,Yh6g5,
Yg5g4,Yg4g3]} 37. Ne6+ {[%emt 0:00:00]} Kf6 {[%emt 0:00:49] Black is clearly
winning.} 38. d5 {[%emt 0:00:05]} g5 {[%emt 0:00:00]} 39. fxg5+ {[%emt 0:00:13]
} hxg5 {[%emt 0:00:03]} 40. b4 {[%emt 0:00:00]} Ne5 {[%emt 0:06:41]} 41. Bb5 {
[%emt 0:03:21]} Rh8 {[%emt 0:05:09]} 42. a4 {[%emt 0:02:07]} Rh4 {[%emt 0:16:
07]} 43. Nc7 {[%emt 0:17:08]} Ke7 {[%emt 0:00:00]} 44. Ne6 {[%emt 0:01:57]} g4
{[%emt 0:00:00] Hoping for ...g3.} 45. Ng7 {[%emt 0:00:26]} (45. Nd4 $142 Rh3
46. Nf5+ Kf6 47. Nd4) 45... Kf6 {[%emt 0:00:00]} 46. Ne8+ {[%emt 0:00:36]} Kg5
{[%emt 0:00:00]} 47. d6 {[%emt 0:02:07]} g3 {[%emt 0:00:00] Weighted Error
Value: White=0.44/Black=0.06 (flawless)} 0-1